[Event "Titled Tuesday Blitz January 31 Early 2023"]
[White "Ter-Sahakyan, Samvel"]
[Black "Le, Tuan Minh"]
[WhiteFideId "13302531"]
[BlackFideId "12401153"]
[WhiteElo "2617"]
[BlackElo "2542"]
[Result "0-1"]
[Round "07"]
[TimeControl "180+2"]
[Date "2023.01.31"]
[WhiteClock "0:00:03"]
[BlackClock "0:00:07"]

1. d4 {[%clk 0:03:00]}  d5 {[%clk 0:02:58]} 2. c4 {[%clk 0:03:00]}  c6 {[%clk 0:02:59]} 3. Nf3 {[%clk 0:02:58]}  Nf6 {[%clk 0:02:59]} 4. e3 {[%clk 0:02:58]}  Bf5 {[%clk 0:02:59]} 5. Nc3 {[%clk 0:02:58]}  e6 {[%clk 0:02:59]} 6. Nh4 {[%clk 0:02:58]}  Be4 {[%clk 0:03:00]} 7. f3 {[%clk 0:02:57]}  Bg6 {[%clk 0:03:00]} 8. Qb3 {[%clk 0:02:58]}  Qc7 {[%clk 0:03:00]} 9. Bd2 {[%clk 0:02:46]}  Be7 {[%clk 0:03:00]} 10. Nxg6 {[%clk 0:02:16]}  hxg6 {[%clk 0:02:59]} 11. O-O-O {[%clk 0:02:16]}  dxc4 {[%clk 0:02:58]} 12. Bxc4 {[%clk 0:02:16]}  b5 {[%clk 0:02:58]} 13. Be2 {[%clk 0:02:12]}  a6 {[%clk 0:02:58]} 14. Kb1 {[%clk 0:02:12]}  c5 {[%clk 0:02:59]} 15. dxc5 {[%clk 0:02:08]}  Bxc5 {[%clk 0:02:59]} 16. g4 {[%clk 0:01:56]}  Nbd7 {[%clk 0:01:21]} 17. h4 {[%clk 0:01:22]}  Rd8 {[%clk 0:01:07]} 18. h5 {[%clk 0:01:02]}  g5 {[%clk 0:00:56]} 19. f4 {[%clk 0:00:46]}  b4 {[%clk 0:00:38]} 20. Na4 {[%clk 0:00:32]}  Ne4 {[%clk 0:00:39]} 21. Rhf1 {[%clk 0:00:16]}  O-O {[%clk 0:00:34]} 22. Bc1 {[%clk 0:00:16]}  Be7 {[%clk 0:00:32]} 23. Bf3 {[%clk 0:00:14]}  Nec5 {[%clk 0:00:31]} 24. Nxc5 {[%clk 0:00:14]}  Nxc5 {[%clk 0:00:32]} 25. Qc4 {[%clk 0:00:14]}  b3 {[%clk 0:00:31]} 26. axb3 {[%clk 0:00:13]}  Qb6 {[%clk 0:00:31]} 27. Rxd8 {[%clk 0:00:10]}  Rxd8 {[%clk 0:00:32]} 28. Rd1 {[%clk 0:00:10]}  Rb8 {[%clk 0:00:29]} 29. b4 {[%clk 0:00:09]}  Qxb4 {[%clk 0:00:24]} 30. Qxb4 {[%clk 0:00:10]}  Rxb4 {[%clk 0:00:25]} 31. Rd4 {[%clk 0:00:07]}  Rb3 {[%clk 0:00:22]} 32. f5 {[%clk 0:00:03]}  Bf6 {[%clk 0:00:19]} 33. Rc4 {[%clk 0:00:03]}  Nd3 {[%clk 0:00:19]} 34. Kc2 {[%clk 0:00:03]}  Nxc1 {[%clk 0:00:19]} 35. fxe6 {[%clk 0:00:03]}  fxe6 {[%clk 0:00:17]} 36. Be4 {[%clk 0:00:03]}  Kf8 {[%clk 0:00:07]} 37. Kxc1 {[%clk 0:00:02]}  Rxe3 {[%clk 0:00:07]} 38. Bg6 {[%clk 0:00:02]}  Ke7 {[%clk 0:00:07]} 39. Rc7+ {[%clk 0:00:01]}  Kd6 {[%clk 0:00:08]} 40. Ra7 {[%clk 0:00:02]}  Ke5 {[%clk 0:00:04]} 41. Rxa6 {[%clk 0:00:02]}  Kf4 {[%clk 0:00:04]} 42. Ra4+ {[%clk 0:00:03]}  Kg3 {[%clk 0:00:05]} 43. Re4 {[%clk 0:00:03]}  Rxe4 {[%clk 0:00:03]} 44. Bxe4 {[%clk 0:00:03]}  Kxg4 {[%clk 0:00:04]} 45. Kd2 {[%clk 0:00:04]}  Kxh5 {[%clk 0:00:04]} 46. Ke2 {[%clk 0:00:04]}  Bxb2 {[%clk 0:00:04]} 47. Kf3 {[%clk 0:00:05]}  g4+ {[%clk 0:00:05]} 48. Kg2 {[%clk 0:00:05]}  Kg5 {[%clk 0:00:05]} 49. Bb7 {[%clk 0:00:05]}  Kf4 {[%clk 0:00:06]} 50. Bc8 {[%clk 0:00:06]}  e5 {[%clk 0:00:06]} 51. Ba6 {[%clk 0:00:06]}  e4 {[%clk 0:00:06]} 52. Be2 {[%clk 0:00:06]}  Be5 {[%clk 0:00:06]} 53. Bd1 {[%clk 0:00:06]}  g3 {[%clk 0:00:06]} 54. Bh5 {[%clk 0:00:05]}  Ke3 {[%clk 0:00:07]} 55. Bg4 {[%clk 0:00:06]}  Kd2 {[%clk 0:00:07]} 56. Kf1 {[%clk 0:00:03]}  e3 {[%clk 0:00:08]} 57. Bf3 {[%clk 0:00:03]}  e2+ {[%clk 0:00:06]} 58. Bxe2 {[%clk 0:00:03]}  g2+ {[%clk 0:00:07]} 0-1


[Site "https://www.chess.com"]

[Event "Titled Tuesday Blitz January 31 Early 2023"]
[White "Fier, Alexandr"]
[Black "Bluebaum, Matthias"]
[WhiteFideId "2107139"]
[BlackFideId "24651516"]
[WhiteElo "2589"]
[BlackElo "2669"]
[Result "0-1"]
[Round "07"]
[TimeControl "180+2"]
[Date "2023.01.31"]
[WhiteClock "0:01:50"]
[BlackClock "0:00:52"]

1. d4 {[%clk 0:03:00]}  d5 {[%clk 0:03:00]} 2. c4 {[%clk 0:03:01]}  e6 {[%clk 0:03:00]} 3. Nc3 {[%clk 0:03:01]}  Nf6 {[%clk 0:03:01]} 4. cxd5 {[%clk 0:03:01]}  exd5 {[%clk 0:03:02]} 5. Bg5 {[%clk 0:03:01]}  c6 {[%clk 0:03:03]} 6. e3 {[%clk 0:03:01]}  h6 {[%clk 0:03:03]} 7. Bh4 {[%clk 0:03:01]}  Be7 {[%clk 0:03:04]} 8. Bd3 {[%clk 0:03:01]}  O-O {[%clk 0:03:04]} 9. Qc2 {[%clk 0:03:01]}  Re8 {[%clk 0:03:01]} 10. Nf3 {[%clk 0:03:01]}  Ne4 {[%clk 0:03:01]} 11. Bxe7 {[%clk 0:03:00]}  Qxe7 {[%clk 0:03:02]} 12. O-O {[%clk 0:03:00]}  Bf5 {[%clk 0:03:02]} 13. Bxe4 {[%clk 0:03:00]}  Bxe4 {[%clk 0:03:01]} 14. Nxe4 {[%clk 0:03:00]}  Qxe4 {[%clk 0:03:02]} 15. Qxe4 {[%clk 0:02:56]}  Rxe4 {[%clk 0:03:03]} 16. b4 {[%clk 0:02:56]}  Nd7 {[%clk 0:03:02]} 17. a4 {[%clk 0:02:56]}  a6 {[%clk 0:02:53]} 18. b5 {[%clk 0:02:50]}  cxb5 {[%clk 0:02:50]} 19. axb5 {[%clk 0:02:51]}  a5 {[%clk 0:02:50]} 20. Rfc1 {[%clk 0:02:50]}  Nb6 {[%clk 0:02:32]} 21. Rc7 {[%clk 0:02:48]}  Ra7 {[%clk 0:02:32]} 22. Ne5 {[%clk 0:02:44]}  f6 {[%clk 0:02:33]} 23. Nd7 {[%clk 0:02:44]}  Re7 {[%clk 0:02:00]} 24. Nxf6+ {[%clk 0:02:42]}  Kf7 {[%clk 0:02:01]} 25. Rxe7+ {[%clk 0:02:42]}  Kxe7 {[%clk 0:02:02]} 26. Ng4 {[%clk 0:02:43]}  a4 {[%clk 0:01:51]} 27. Ne5 {[%clk 0:02:42]}  a3 {[%clk 0:01:51]} 28. Nd3 {[%clk 0:02:41]}  Ra5 {[%clk 0:01:42]} 29. Kf1 {[%clk 0:02:39]}  Nc4 {[%clk 0:01:42]} 30. Ne5 {[%clk 0:02:07]}  Nd2+ {[%clk 0:01:41]} 31. Ke1 {[%clk 0:02:05]}  Nb3 {[%clk 0:01:41]} 32. Ra2 {[%clk 0:02:05]}  Nc1 {[%clk 0:01:42]} 33. Ra1 {[%clk 0:02:05]}  a2 {[%clk 0:01:42]} 34. b6 {[%clk 0:01:50]}  Rb5 {[%clk 0:00:52]} 0-1


[Site "https://www.chess.com"]

[Event "Titled Tuesday Blitz January 31 Early 2023"]
[White "Ioannidis, Evgenios"]
[Black "Sanal, Vahap"]
[WhiteFideId "4229274"]
[BlackFideId "6300545"]
[WhiteElo "2467"]
[BlackElo "2600"]
[Result "0-1"]
[Round "07"]
[TimeControl "180+2"]
[Date "2023.01.31"]
[WhiteClock "0:00:02"]
[BlackClock "0:00:02"]

1. d4 {[%clk 0:02:57]}  Nf6 {[%clk 0:02:59]} 2. c4 {[%clk 0:02:57]}  g6 {[%clk 0:03:00]} 3. Nc3 {[%clk 0:02:58]}  Bg7 {[%clk 0:03:00]} 4. e4 {[%clk 0:02:58]}  d6 {[%clk 0:02:59]} 5. Be2 {[%clk 0:02:58]}  O-O {[%clk 0:02:58]} 6. Bg5 {[%clk 0:02:58]}  c5 {[%clk 0:02:56]} 7. d5 {[%clk 0:02:59]}  e6 {[%clk 0:02:54]} 8. Qd2 {[%clk 0:02:59]}  exd5 {[%clk 0:02:54]} 9. exd5 {[%clk 0:02:59]}  Re8 {[%clk 0:02:51]} 10. Nf3 {[%clk 0:02:59]}  Qb6 {[%clk 0:02:49]} 11. O-O {[%clk 0:02:55]}  Bf5 {[%clk 0:02:50]} 12. Nh4 {[%clk 0:02:53]}  Bd7 {[%clk 0:02:34]} 13. Qf4 {[%clk 0:02:36]}  Qd8 {[%clk 0:01:52]} 14. Bf3 {[%clk 0:01:55]}  h6 {[%clk 0:01:19]} 15. Bxh6 {[%clk 0:01:53]}  Bxh6 {[%clk 0:01:20]} 16. Qxh6 {[%clk 0:01:53]}  Re5 {[%clk 0:01:09]} 17. Rae1 {[%clk 0:01:19]}  Qe7 {[%clk 0:01:04]} 18. Qd2 {[%clk 0:01:15]}  Na6 {[%clk 0:00:57]} 19. Bd1 {[%clk 0:01:06]}  Ne4 {[%clk 0:00:39]} 20. Nxe4 {[%clk 0:00:57]}  Rxe4 {[%clk 0:00:40]} 21. Nf3 {[%clk 0:00:51]}  Re8 {[%clk 0:00:40]} 22. Rxe4 {[%clk 0:00:51]}  Qxe4 {[%clk 0:00:39]} 23. b3 {[%clk 0:00:47]}  Qb1 {[%clk 0:00:27]} 24. Qf4 {[%clk 0:00:31]}  Bf5 {[%clk 0:00:24]} 25. Qxd6 {[%clk 0:00:20]}  Qxa2 {[%clk 0:00:24]} 26. Ne5 {[%clk 0:00:14]}  Qb2 {[%clk 0:00:21]} 27. f4 {[%clk 0:00:13]}  Qd4+ {[%clk 0:00:20]} 28. Kh1 {[%clk 0:00:14]}  Bd3 {[%clk 0:00:19]} 29. Rg1 {[%clk 0:00:14]}  Qxf4 {[%clk 0:00:15]} 30. Re1 {[%clk 0:00:07]}  Qf2 {[%clk 0:00:12]} 31. Rg1 {[%clk 0:00:05]}  Bf1 {[%clk 0:00:10]} 32. Bf3 {[%clk 0:00:02]}  Nb4 {[%clk 0:00:08]} 33. Ng4 {[%clk 0:00:03]}  Qd4 {[%clk 0:00:02]} 34. Nf6+ {[%clk 0:00:03]}  Kh8 {[%clk 0:00:02]} 35. Nxe8 {[%clk 0:00:03]}  Nd3 {[%clk 0:00:02]} 36. Qf8+ {[%clk 0:00:02]}  Kh7 {[%clk 0:00:02]} 0-1


[Site "https://www.chess.com"]

[Event "Titled Tuesday Blitz January 31 Early 2023"]
[White "Sattarov, Bobir"]
[Black "Dominguez Perez, Leinier"]
[WhiteFideId "14203081"]
[BlackFideId "3503240"]
[WhiteElo "2366"]
[BlackElo "2739"]
[Result "1/2-1/2"]
[Round "07"]
[TimeControl "180+2"]
[Date "2023.01.31"]
[WhiteClock "0:00:03"]
[BlackClock "0:00:03"]

1. e4 {[%clk 0:03:00]}  Nf6 {[%clk 0:02:58]} 2. e5 {[%clk 0:03:01]}  Nd5 {[%clk 0:02:59]} 3. c4 {[%clk 0:03:01]}  Nb6 {[%clk 0:02:59]} 4. d4 {[%clk 0:03:02]}  d6 {[%clk 0:02:59]} 5. exd6 {[%clk 0:03:03]}  exd6 {[%clk 0:02:59]} 6. Nc3 {[%clk 0:03:03]}  Be7 {[%clk 0:02:59]} 7. Bd3 {[%clk 0:03:04]}  O-O {[%clk 0:02:55]} 8. Nge2 {[%clk 0:03:04]}  Na6 {[%clk 0:02:55]} 9. O-O {[%clk 0:02:58]}  c6 {[%clk 0:02:53]} 10. b3 {[%clk 0:02:56]}  Nb4 {[%clk 0:02:52]} 11. Bb1 {[%clk 0:02:52]}  d5 {[%clk 0:02:52]} 12. c5 {[%clk 0:02:51]}  Nd7 {[%clk 0:02:52]} 13. h3 {[%clk 0:02:51]}  Re8 {[%clk 0:02:51]} 14. Be3 {[%clk 0:02:51]}  Nf8 {[%clk 0:02:44]} 15. a3 {[%clk 0:02:47]}  Na6 {[%clk 0:02:44]} 16. Bd3 {[%clk 0:02:41]}  Nc7 {[%clk 0:02:43]} 17. Qc2 {[%clk 0:02:38]}  g6 {[%clk 0:02:42]} 18. Rae1 {[%clk 0:02:36]}  Nce6 {[%clk 0:02:41]} 19. Kh1 {[%clk 0:02:33]}  Ng7 {[%clk 0:02:36]} 20. Ng3 {[%clk 0:02:16]}  b6 {[%clk 0:02:33]} 21. b4 {[%clk 0:02:13]}  a5 {[%clk 0:02:33]} 22. Bh6 {[%clk 0:02:05]}  axb4 {[%clk 0:02:31]} 23. axb4 {[%clk 0:02:05]}  bxc5 {[%clk 0:02:29]} 24. bxc5 {[%clk 0:02:03]}  Nfe6 {[%clk 0:02:16]} 25. Nce2 {[%clk 0:02:00]}  Bf6 {[%clk 0:02:13]} 26. Be3 {[%clk 0:01:49]}  Ba6 {[%clk 0:02:08]} 27. Ra1 {[%clk 0:01:45]}  Qc8 {[%clk 0:01:58]} 28. Ra3 {[%clk 0:01:34]}  Bxd3 {[%clk 0:01:57]} 29. Qxd3 {[%clk 0:01:35]}  Rxa3 {[%clk 0:01:56]} 30. Qxa3 {[%clk 0:01:35]}  h5 {[%clk 0:01:56]} 31. Rb1 {[%clk 0:01:33]}  h4 {[%clk 0:01:54]} 32. Nf1 {[%clk 0:01:33]}  Nf5 {[%clk 0:01:55]} 33. Qa4 {[%clk 0:01:32]}  Qa8 {[%clk 0:01:44]} 34. Qd1 {[%clk 0:01:16]}  Rb8 {[%clk 0:01:37]} 35. Ra1 {[%clk 0:01:11]}  Qb7 {[%clk 0:01:37]} 36. Nh2 {[%clk 0:01:11]}  Qb2 {[%clk 0:01:23]} 37. Rc1 {[%clk 0:00:54]}  Nexd4 {[%clk 0:01:10]} 38. Nxd4 {[%clk 0:00:48]}  Bxd4 {[%clk 0:01:08]} 39. Bxd4 {[%clk 0:00:43]}  Qxd4 {[%clk 0:01:07]} 40. Qe1 {[%clk 0:00:39]}  Qe4 {[%clk 0:00:36]} 41. Qd1 {[%clk 0:00:35]}  Qd4 {[%clk 0:00:33]} 42. Qe1 {[%clk 0:00:35]}  Kg7 {[%clk 0:00:33]} 43. Ng4 {[%clk 0:00:34]}  Rb5 {[%clk 0:00:29]} 44. Rd1 {[%clk 0:00:31]}  Qb2 {[%clk 0:00:27]} 45. Kh2 {[%clk 0:00:15]}  Rxc5 {[%clk 0:00:22]} 46. Rb1 {[%clk 0:00:16]}  Qc3 {[%clk 0:00:22]} 47. Qe8 {[%clk 0:00:16]}  Rb5 {[%clk 0:00:19]} 48. Rxb5 {[%clk 0:00:15]}  cxb5 {[%clk 0:00:19]} 49. Qxb5 {[%clk 0:00:16]}  Qd4 {[%clk 0:00:18]} 50. Qd7 {[%clk 0:00:14]}  Qf4+ {[%clk 0:00:17]} 51. Kg1 {[%clk 0:00:14]}  d4 {[%clk 0:00:18]} 52. Qd5 {[%clk 0:00:13]}  Qd6 {[%clk 0:00:16]} 53. Qe4 {[%clk 0:00:12]}  d3 {[%clk 0:00:15]} 54. Qe1 {[%clk 0:00:06]}  d2 {[%clk 0:00:15]} 55. Qd1 {[%clk 0:00:07]}  Qd4 {[%clk 0:00:15]} 56. Nh2 {[%clk 0:00:04]}  Ne3 {[%clk 0:00:11]} 57. fxe3 {[%clk 0:00:04]}  Qxe3+ {[%clk 0:00:12]} 58. Kf1 {[%clk 0:00:04]}  Qd3+ {[%clk 0:00:11]} 59. Kf2 {[%clk 0:00:05]}  Qd4+ {[%clk 0:00:11]} 60. Kf1 {[%clk 0:00:03]}  Qc4+ {[%clk 0:00:11]} 61. Kf2 {[%clk 0:00:01]}  Qc1 {[%clk 0:00:09]} 62. Ke2 {[%clk 0:00:01]}  Qc4+ {[%clk 0:00:09]} 63. Kf2 {[%clk 0:00:01]}  Qc5+ {[%clk 0:00:09]} 64. Kf1 {[%clk 0:00:02]}  Qb5+ {[%clk 0:00:06]} 65. Kf2 {[%clk 0:00:02]}  Qc5+ {[%clk 0:00:04]} 66. Kf1 {[%clk 0:00:02]}  Qc1 {[%clk 0:00:03]} 67. Ke2 {[%clk 0:00:03]}  Qc4+ {[%clk 0:00:03]} 68. Kf2 {[%clk 0:00:03]} 1/2-1/2


[Site "https://www.chess.com"]

[Event "Titled Tuesday Blitz January 31 Early 2023"]
[White "Svidler, Peter"]
[Black "Csonka, Balazs"]
[WhiteFideId "4102142"]
[BlackFideId "742910"]
[WhiteElo "2683"]
[BlackElo "2496"]
[Result "1-0"]
[Round "07"]
[TimeControl "180+2"]
[Date "2023.01.31"]
[WhiteClock "0:00:17"]
[BlackClock "0:00:02"]

1. e4 {[%clk 0:02:44]}  e5 {[%clk 0:02:59]} 2. Nf3 {[%clk 0:02:43]}  Nc6 {[%clk 0:02:58]} 3. Bb5 {[%clk 0:02:42]}  a6 {[%clk 0:02:58]} 4. Ba4 {[%clk 0:02:41]}  Nf6 {[%clk 0:02:58]} 5. O-O {[%clk 0:02:41]}  Be7 {[%clk 0:02:58]} 6. d3 {[%clk 0:02:40]}  b5 {[%clk 0:02:51]} 7. Bb3 {[%clk 0:02:40]}  d6 {[%clk 0:02:51]} 8. a4 {[%clk 0:02:39]}  Bd7 {[%clk 0:02:39]} 9. c3 {[%clk 0:02:39]}  O-O {[%clk 0:02:39]} 10. Bc2 {[%clk 0:02:38]}  Re8 {[%clk 0:02:30]} 11. Nbd2 {[%clk 0:02:21]}  Bf8 {[%clk 0:02:29]} 12. Re1 {[%clk 0:02:22]}  g6 {[%clk 0:02:03]} 13. Nf1 {[%clk 0:02:21]}  Bg7 {[%clk 0:02:03]} 14. h3 {[%clk 0:02:18]}  b4 {[%clk 0:01:47]} 15. a5 {[%clk 0:02:17]}  Rb8 {[%clk 0:01:44]} 16. d4 {[%clk 0:02:13]}  bxc3 {[%clk 0:01:38]} 17. bxc3 {[%clk 0:02:13]}  exd4 {[%clk 0:01:34]} 18. cxd4 {[%clk 0:02:13]}  Nb4 {[%clk 0:01:35]} 19. Bb1 {[%clk 0:02:12]}  d5 {[%clk 0:01:28]} 20. e5 {[%clk 0:02:11]}  Ne4 {[%clk 0:01:28]} 21. Ng3 {[%clk 0:02:11]}  Nc3 {[%clk 0:01:14]} 22. Qd2 {[%clk 0:02:11]}  Nxb1 {[%clk 0:01:14]} 23. Rxb1 {[%clk 0:02:11]}  c5 {[%clk 0:01:08]} 24. Bb2 {[%clk 0:01:57]}  c4 {[%clk 0:00:45]} 25. Bc3 {[%clk 0:01:56]}  Nd3 {[%clk 0:00:42]} 26. Rf1 {[%clk 0:01:45]}  Qe7 {[%clk 0:00:35]} 27. Nh2 {[%clk 0:01:29]}  Rb5 {[%clk 0:00:31]} 28. f4 {[%clk 0:01:26]}  Reb8 {[%clk 0:00:21]} 29. Rbd1 {[%clk 0:01:25]}  Bh6 {[%clk 0:00:19]} 30. Rf3 {[%clk 0:01:19]}  Rb3 {[%clk 0:00:18]} 31. Ng4 {[%clk 0:01:18]}  Bxg4 {[%clk 0:00:18]} 32. hxg4 {[%clk 0:01:18]}  Bxf4 {[%clk 0:00:10]} 33. Rxf4 {[%clk 0:01:14]}  Nxf4 {[%clk 0:00:10]} 34. Qxf4 {[%clk 0:00:25]}  Rxc3 {[%clk 0:00:09]} 35. e6 {[%clk 0:00:23]}  Rf8 {[%clk 0:00:08]} 36. exf7+ {[%clk 0:00:16]}  Qxf7 {[%clk 0:00:09]} 37. Qd6 {[%clk 0:00:14]}  Qf2+ {[%clk 0:00:04]} 38. Kh2 {[%clk 0:00:15]}  Qxg3+ {[%clk 0:00:03]} 39. Qxg3 {[%clk 0:00:16]}  Rxg3 {[%clk 0:00:03]} 40. Kxg3 {[%clk 0:00:17]}  Rc8 {[%clk 0:00:03]} 41. Kf4 {[%clk 0:00:17]}  Re8 {[%clk 0:00:01]} 42. Rb1 {[%clk 0:00:16]}  Re4+ {[%clk 0:00:01]} 43. Kf3 {[%clk 0:00:17]}  Rxd4 {[%clk 0:00:02]} 44. Rb6 {[%clk 0:00:17]} 1-0


[Site "https://www.chess.com"]

[Event "Titled Tuesday Blitz January 31 Early 2023"]
[White "Boros, Denes"]
[Black "Pranav, V"]
[WhiteFideId "722340"]
[BlackFideId "25060783"]
[WhiteElo "2406"]
[BlackElo "2597"]
[Result "1/2-1/2"]
[Round "07"]
[TimeControl "180+2"]
[Date "2023.01.31"]
[WhiteClock "0:00:41"]
[BlackClock "0:00:09"]

1. e4 {[%clk 0:03:00]}  e5 {[%clk 0:02:59]} 2. Be2 {[%clk 0:03:01]}  Nc6 {[%clk 0:03:00]} 3. Nf3 {[%clk 0:03:00]}  Nf6 {[%clk 0:03:00]} 4. d4 {[%clk 0:03:00]}  exd4 {[%clk 0:02:56]} 5. e5 {[%clk 0:03:01]}  Ne4 {[%clk 0:02:56]} 6. O-O {[%clk 0:02:59]}  d5 {[%clk 0:02:55]} 7. Bb5 {[%clk 0:02:57]}  Bc5 {[%clk 0:02:50]} 8. Nxd4 {[%clk 0:02:56]}  Bd7 {[%clk 0:02:49]} 9. Nxc6 {[%clk 0:02:56]}  bxc6 {[%clk 0:02:50]} 10. Bd3 {[%clk 0:02:56]}  Qh4 {[%clk 0:02:39]} 11. Qe2 {[%clk 0:02:56]}  Ng5 {[%clk 0:02:35]} 12. Be3 {[%clk 0:02:54]}  Bb6 {[%clk 0:02:15]} 13. Nd2 {[%clk 0:02:47]}  O-O {[%clk 0:02:09]} 14. Kh1 {[%clk 0:02:42]}  Bxe3 {[%clk 0:02:00]} 15. Qxe3 {[%clk 0:02:43]}  f5 {[%clk 0:01:57]} 16. f4 {[%clk 0:02:31]}  Ne6 {[%clk 0:01:56]} 17. Nb3 {[%clk 0:02:26]}  Qe7 {[%clk 0:01:29]} 18. c4 {[%clk 0:02:21]}  a5 {[%clk 0:01:15]} 19. Rac1 {[%clk 0:02:18]}  a4 {[%clk 0:01:06]} 20. cxd5 {[%clk 0:02:07]}  cxd5 {[%clk 0:01:06]} 21. Nd4 {[%clk 0:02:07]}  Nxd4 {[%clk 0:01:01]} 22. Qxd4 {[%clk 0:02:08]}  c6 {[%clk 0:01:01]} 23. Rc2 {[%clk 0:01:55]}  Rab8 {[%clk 0:00:59]} 24. Qa7 {[%clk 0:01:49]}  Ra8 {[%clk 0:00:58]} 25. Qd4 {[%clk 0:01:43]}  Rfb8 {[%clk 0:00:57]} 26. g4 {[%clk 0:01:38]}  Rb4 {[%clk 0:00:50]} 27. Qe3 {[%clk 0:01:38]}  fxg4 {[%clk 0:00:46]} 28. f5 {[%clk 0:01:38]}  Rf8 {[%clk 0:00:41]} 29. Re2 {[%clk 0:01:31]}  c5 {[%clk 0:00:35]} 30. Kg1 {[%clk 0:01:11]}  Bc6 {[%clk 0:00:22]} 31. f6 {[%clk 0:00:54]}  gxf6 {[%clk 0:00:21]} 32. Qh6 {[%clk 0:00:55]}  Qg7 {[%clk 0:00:17]} 33. Qxg7+ {[%clk 0:00:53]}  Kxg7 {[%clk 0:00:18]} 34. exf6+ {[%clk 0:00:54]}  Rxf6 {[%clk 0:00:16]} 35. Re7+ {[%clk 0:00:54]}  Kf8 {[%clk 0:00:16]} 36. Rxf6+ {[%clk 0:00:54]}  Kxe7 {[%clk 0:00:17]} 37. Rxc6 {[%clk 0:00:55]}  c4 {[%clk 0:00:17]} 38. Bxh7 {[%clk 0:00:52]}  Rxb2 {[%clk 0:00:17]} 39. Bg8 {[%clk 0:00:48]}  Rd2 {[%clk 0:00:17]} 40. Kf1 {[%clk 0:00:44]}  Kd7 {[%clk 0:00:16]} 41. Bxd5 {[%clk 0:00:44]}  Rxd5 {[%clk 0:00:13]} 42. Rxc4 {[%clk 0:00:44]}  a3 {[%clk 0:00:08]} 43. Rc3 {[%clk 0:00:39]}  Rd2 {[%clk 0:00:03]} 44. Rxa3 {[%clk 0:00:39]}  Rxh2 {[%clk 0:00:03]} 45. Kg1 {[%clk 0:00:39]}  Rb2 {[%clk 0:00:03]} 46. Ra6 {[%clk 0:00:39]}  Kc7 {[%clk 0:00:03]} 47. Kf1 {[%clk 0:00:34]}  g3 {[%clk 0:00:01]} 48. Ra3 {[%clk 0:00:34]}  Kb7 {[%clk 0:00:01]} 49. Kg1 {[%clk 0:00:34]}  Rb1+ {[%clk 0:00:01]} 50. Kg2 {[%clk 0:00:34]}  Rb2+ {[%clk 0:00:02]} 51. Kxg3 {[%clk 0:00:35]}  Kb6 {[%clk 0:00:02]} 52. Kf4 {[%clk 0:00:34]}  Rc2 {[%clk 0:00:03]} 53. Rb3+ {[%clk 0:00:33]}  Ka5 {[%clk 0:00:03]} 54. a3 {[%clk 0:00:34]}  Ka4 {[%clk 0:00:03]} 55. Rd3 {[%clk 0:00:35]}  Ra2 {[%clk 0:00:03]} 56. Ke4 {[%clk 0:00:35]}  Rxa3 {[%clk 0:00:04]} 57. Rd5 {[%clk 0:00:36]}  Rb3 {[%clk 0:00:04]} 58. Kd4 {[%clk 0:00:36]}  Rb4+ {[%clk 0:00:05]} 59. Kc3 {[%clk 0:00:36]}  Rb3+ {[%clk 0:00:06]} 60. Kc2 {[%clk 0:00:36]}  Rb5 {[%clk 0:00:06]} 61. Rd4+ {[%clk 0:00:36]}  Rb4 {[%clk 0:00:06]} 62. Rd5 {[%clk 0:00:37]}  Rb5 {[%clk 0:00:07]} 63. Rd3 {[%clk 0:00:37]}  Ka5 {[%clk 0:00:07]} 64. Kc3 {[%clk 0:00:37]}  Kb6 {[%clk 0:00:08]} 65. Kc4 {[%clk 0:00:38]}  Rc5+ {[%clk 0:00:08]} 66. Kb4 {[%clk 0:00:39]}  Rb5+ {[%clk 0:00:08]} 67. Kc4 {[%clk 0:00:39]}  Rc5+ {[%clk 0:00:09]} 68. Kb4 {[%clk 0:00:40]}  Rb5+ {[%clk 0:00:09]} 69. Kc4 {[%clk 0:00:41]} 1/2-1/2


[Site "https://www.chess.com"]

[Event "Titled Tuesday Blitz January 31 Early 2023"]
[White "Shimanov, Aleksandr"]
[Black "Halkias, Stelios"]
[WhiteFideId "4198603"]
[BlackFideId "4201809"]
[WhiteElo "2581"]
[BlackElo "2511"]
[Result "1-0"]
[Round "07"]
[TimeControl "180+2"]
[Date "2023.01.31"]
[WhiteClock "0:00:04"]
[BlackClock "0:00:03"]

1. e4 {[%clk 0:03:00]}  e5 {[%clk 0:02:59]} 2. Nf3 {[%clk 0:03:00]}  Nc6 {[%clk 0:02:59]} 3. Nc3 {[%clk 0:03:01]}  Nf6 {[%clk 0:02:59]} 4. h3 {[%clk 0:03:01]}  d6 {[%clk 0:02:57]} 5. d4 {[%clk 0:02:59]}  exd4 {[%clk 0:02:56]} 6. Nxd4 {[%clk 0:03:00]}  g6 {[%clk 0:02:57]} 7. Nxc6 {[%clk 0:02:59]}  bxc6 {[%clk 0:02:56]} 8. Bd3 {[%clk 0:02:59]}  Bg7 {[%clk 0:02:57]} 9. O-O {[%clk 0:03:00]}  O-O {[%clk 0:02:57]} 10. Bg5 {[%clk 0:03:00]}  h6 {[%clk 0:02:55]} 11. Be3 {[%clk 0:02:59]}  Rb8 {[%clk 0:02:53]} 12. b3 {[%clk 0:02:47]}  a5 {[%clk 0:02:53]} 13. Qd2 {[%clk 0:02:46]}  Kh7 {[%clk 0:02:45]} 14. Rad1 {[%clk 0:02:45]}  Nd7 {[%clk 0:02:41]} 15. f4 {[%clk 0:02:44]}  Qh4 {[%clk 0:02:35]} 16. Bf2 {[%clk 0:02:36]}  Qe7 {[%clk 0:02:31]} 17. Na4 {[%clk 0:02:35]}  Nf6 {[%clk 0:02:24]} 18. Rde1 {[%clk 0:02:33]}  Rb4 {[%clk 0:02:17]} 19. a3 {[%clk 0:02:16]}  Rxe4 {[%clk 0:02:10]} 20. Qxa5 {[%clk 0:01:53]}  Rxe1 {[%clk 0:02:01]} 21. Rxe1 {[%clk 0:01:54]}  Qd8 {[%clk 0:02:01]} 22. Qd2 {[%clk 0:01:46]}  c5 {[%clk 0:01:53]} 23. Nc3 {[%clk 0:01:44]}  Bb7 {[%clk 0:01:52]} 24. a4 {[%clk 0:01:44]}  Nh5 {[%clk 0:01:45]} 25. Ne4 {[%clk 0:01:26]}  f5 {[%clk 0:01:31]} 26. Ng3 {[%clk 0:01:21]}  Nf6 {[%clk 0:01:19]} 27. Bf1 {[%clk 0:01:00]}  Ne4 {[%clk 0:01:09]} 28. Nxe4 {[%clk 0:00:59]}  fxe4 {[%clk 0:01:09]} 29. Be3 {[%clk 0:00:57]}  Qe7 {[%clk 0:01:00]} 30. b4 {[%clk 0:00:54]}  cxb4 {[%clk 0:00:56]} 31. Qxb4 {[%clk 0:00:55]}  c5 {[%clk 0:00:56]} 32. Qb6 {[%clk 0:00:52]}  g5 {[%clk 0:00:33]} 33. fxg5 {[%clk 0:00:41]}  Be5 {[%clk 0:00:34]} 34. Qb5 {[%clk 0:00:28]}  hxg5 {[%clk 0:00:23]} 35. Qe2 {[%clk 0:00:28]}  Bf4 {[%clk 0:00:23]} 36. Qh5+ {[%clk 0:00:26]}  Kg7 {[%clk 0:00:24]} 37. c4 {[%clk 0:00:25]}  Qe5 {[%clk 0:00:23]} 38. Qe2 {[%clk 0:00:23]}  Bc6 {[%clk 0:00:22]} 39. a5 {[%clk 0:00:23]}  Rb8 {[%clk 0:00:22]} 40. Bxf4 {[%clk 0:00:11]}  gxf4 {[%clk 0:00:22]} 41. Qg4+ {[%clk 0:00:12]}  Kf6 {[%clk 0:00:23]} 42. a6 {[%clk 0:00:10]}  Rb2 {[%clk 0:00:16]} 43. a7 {[%clk 0:00:08]}  Ra2 {[%clk 0:00:15]} 44. Re2 {[%clk 0:00:08]}  Ra1 {[%clk 0:00:15]} 45. Rf2 {[%clk 0:00:08]}  f3 {[%clk 0:00:14]} 46. gxf3 {[%clk 0:00:06]}  e3 {[%clk 0:00:14]} 47. Re2 {[%clk 0:00:06]}  d5 {[%clk 0:00:11]} 48. cxd5 {[%clk 0:00:05]}  Bb5 {[%clk 0:00:10]} 49. Qh4+ {[%clk 0:00:05]}  Qg5+ {[%clk 0:00:11]} 50. Qxg5+ {[%clk 0:00:05]}  Kxg5 {[%clk 0:00:11]} 51. a8=Q {[%clk 0:00:05]}  Rxa8 {[%clk 0:00:09]} 52. Rg2+ {[%clk 0:00:06]}  Kf4 {[%clk 0:00:09]} 53. Bxb5 {[%clk 0:00:07]}  Ra1+ {[%clk 0:00:08]} 54. Kh2 {[%clk 0:00:07]}  Rb1 {[%clk 0:00:09]} 55. Be2 {[%clk 0:00:05]}  Ke5 {[%clk 0:00:04]} 56. Rg5+ {[%clk 0:00:04]}  Kd4 {[%clk 0:00:04]} 57. d6 {[%clk 0:00:05]}  Rb2 {[%clk 0:00:01]} 58. d7 {[%clk 0:00:03]}  Rxe2+ {[%clk 0:00:01]} 59. Kg3 {[%clk 0:00:04]}  Rd2 {[%clk 0:00:02]} 60. d8=Q+ {[%clk 0:00:04]}  Kc3 {[%clk 0:00:02]} 61. Rxc5+ {[%clk 0:00:04]}  Kb2 {[%clk 0:00:03]} 62. Qb6+ {[%clk 0:00:04]} 1-0


[Site "https://www.chess.com"]